[Event "Titled Tuesday Blitz August 08 Early 2023"]
[White "Kukreja Sankalp"]
[Black "Keleberda, Tymur"]
[WhiteFideId "45027676"]
[BlackFideId "14174294"]
[WhiteElo "2445"]
[BlackElo "2550"]
[Result "0-1"]
[Round "10"]
[TimeControl "180+1"]
[Date "2023.08.08"]
[WhiteClock "0:00:00"]
[BlackClock "0:01:33"]
[Board "84"]

1. e4 {[%clk 0:01:59]}  c5 {[%clk 0:02:59]} 2. Nf3 {[%clk 0:01:58]}  d6 {[%clk 0:02:59]} 3. d4 {[%clk 0:01:57]}  cxd4 {[%clk 0:03:00]} 4. Nxd4 {[%clk 0:01:56]}  Nf6 {[%clk 0:03:01]} 5. Nc3 {[%clk 0:01:56]}  a6 {[%clk 0:03:01]} 6. Bc4 {[%clk 0:01:50]}  e6 {[%clk 0:03:01]} 7. Bb3 {[%clk 0:01:44]}  b5 {[%clk 0:02:59]} 8. Bg5 {[%clk 0:01:43]}  Be7 {[%clk 0:02:59]} 9. Qf3 {[%clk 0:01:27]}  Qc7 {[%clk 0:02:59]} 10. O-O-O {[%clk 0:01:23]}  Nc6 {[%clk 0:02:55]} 11. Nxc6 {[%clk 0:00:31]}  Qxc6 {[%clk 0:02:55]} 12. Qg3 {[%clk 0:00:28]}  O-O {[%clk 0:02:10]} 13. Bxf6 {[%clk 0:00:23]}  Bxf6 {[%clk 0:02:11]} 14. Rxd6 {[%clk 0:00:19]}  Qc5 {[%clk 0:02:11]} 15. Rd3 {[%clk 0:00:17]}  Bb7 {[%clk 0:02:08]} 16. Rf3 {[%clk 0:00:17]}  Be5 {[%clk 0:02:04]} 17. Qg5 {[%clk 0:00:16]}  h6 {[%clk 0:02:02]} 18. Qh4 {[%clk 0:00:10]}  Rad8 {[%clk 0:01:59]} 19. g4 {[%clk 0:00:08]}  Qd4 {[%clk 0:01:53]} 20. Rd1 {[%clk 0:00:07]}  Qb6 {[%clk 0:01:54]} 21. Rxd8 {[%clk 0:00:07]}  Rxd8 {[%clk 0:01:54]} 22. g5 {[%clk 0:00:06]}  b4 {[%clk 0:01:52]} 23. Na4 {[%clk 0:00:06]}  Qd4 {[%clk 0:01:52]} 24. Rd3 {[%clk 0:00:05]}  hxg5 {[%clk 0:01:41]} 25. Rxd4 {[%clk 0:00:02]}  Rxd4 {[%clk 0:01:34]} 26. Qxg5 {[%clk 0:00:00]}  Rxe4 {[%clk 0:01:33]} 0-1


[Site "https://www.chess.com"]

[Event "Titled Tuesday Blitz August 08 Early 2023"]
[White "Escudero Donoso, Felipe"]
[Black "Belov, Alexei"]
[WhiteFideId "3410595"]
[BlackFideId "4128206"]
[WhiteElo "2442"]
[BlackElo "2549"]
[Result "0-1"]
[Round "10"]
[TimeControl "180+1"]
[Date "2023.08.08"]
[WhiteClock "0:00:05"]
[BlackClock "0:00:16"]
[Board "85"]

1. d4 {[%clk 0:02:58]}  d5 {[%clk 0:02:56]} 2. c4 {[%clk 0:02:57]}  e6 {[%clk 0:02:57]} 3. Nc3 {[%clk 0:02:57]}  Be7 {[%clk 0:02:57]} 4. Nf3 {[%clk 0:02:56]}  Nf6 {[%clk 0:02:56]} 5. cxd5 {[%clk 0:02:57]}  exd5 {[%clk 0:02:56]} 6. Bg5 {[%clk 0:02:57]}  c6 {[%clk 0:02:57]} 7. e3 {[%clk 0:02:57]}  Bf5 {[%clk 0:02:57]} 8. Bd3 {[%clk 0:02:54]}  Bxd3 {[%clk 0:02:57]} 9. Qxd3 {[%clk 0:02:55]}  Nbd7 {[%clk 0:02:57]} 10. O-O {[%clk 0:02:55]}  O-O {[%clk 0:02:57]} 11. Rab1 {[%clk 0:02:55]}  a5 {[%clk 0:02:57]} 12. a3 {[%clk 0:02:55]}  Re8 {[%clk 0:02:57]} 13. b4 {[%clk 0:02:55]}  axb4 {[%clk 0:02:57]} 14. axb4 {[%clk 0:02:56]}  b5 {[%clk 0:02:57]} 15. Rfc1 {[%clk 0:02:46]}  Nb6 {[%clk 0:02:53]} 16. Ne5 {[%clk 0:02:44]}  Rc8 {[%clk 0:02:53]} 17. e4 {[%clk 0:02:24]}  dxe4 {[%clk 0:02:45]} 18. Nxe4 {[%clk 0:02:24]}  Nxe4 {[%clk 0:02:41]} 19. Bxe7 {[%clk 0:02:24]}  Rxe7 {[%clk 0:02:05]} 20. Qxe4 {[%clk 0:02:21]}  f6 {[%clk 0:02:02]} 21. Rxc6 {[%clk 0:02:01]}  fxe5 {[%clk 0:01:55]} 22. dxe5 {[%clk 0:01:55]}  Rxc6 {[%clk 0:01:46]} 23. Qxc6 {[%clk 0:01:55]}  Rxe5 {[%clk 0:01:44]} 24. h3 {[%clk 0:01:55]}  Rd5 {[%clk 0:01:18]} 25. Qe6+ {[%clk 0:01:45]}  Kh8 {[%clk 0:01:15]} 26. g3 {[%clk 0:01:39]}  h6 {[%clk 0:01:11]} 27. Rc1 {[%clk 0:00:50]}  Nc4 {[%clk 0:00:56]} 28. Kg2 {[%clk 0:00:35]}  Rd2 {[%clk 0:00:54]} 29. Ra1 {[%clk 0:00:29]}  Qd5+ {[%clk 0:00:52]} 30. Qxd5 {[%clk 0:00:28]}  Rxd5 {[%clk 0:00:53]} 31. Ra8+ {[%clk 0:00:27]}  Kh7 {[%clk 0:00:53]} 32. Rb8 {[%clk 0:00:27]}  Na3 {[%clk 0:00:49]} 33. Ra8 {[%clk 0:00:25]}  Nc2 {[%clk 0:00:48]} 34. Rb8 {[%clk 0:00:24]}  Nxb4 {[%clk 0:00:47]} 35. Kf3 {[%clk 0:00:25]}  Nc6 {[%clk 0:00:46]} 36. Rb6 {[%clk 0:00:24]}  Rc5 {[%clk 0:00:45]} 37. Ke3 {[%clk 0:00:23]}  b4 {[%clk 0:00:45]} 38. Kd2 {[%clk 0:00:22]}  Rc3 {[%clk 0:00:42]} 39. h4 {[%clk 0:00:20]}  h5 {[%clk 0:00:41]} 40. f3 {[%clk 0:00:16]}  Ne5 {[%clk 0:00:31]} 41. Rxb4 {[%clk 0:00:08]}  Rxf3 {[%clk 0:00:30]} 42. Rb5 {[%clk 0:00:08]}  Rf5 {[%clk 0:00:30]} 43. Ke2 {[%clk 0:00:07]}  Kg6 {[%clk 0:00:29]} 44. Rb6+ {[%clk 0:00:06]}  Rf6 {[%clk 0:00:29]} 45. Rb5 {[%clk 0:00:07]}  Ng4 {[%clk 0:00:28]} 46. Rg5+ {[%clk 0:00:07]}  Kh6 {[%clk 0:00:29]} 47. Ra5 {[%clk 0:00:06]}  Rf2+ {[%clk 0:00:29]} 48. Ke1 {[%clk 0:00:06]}  Rg2 {[%clk 0:00:29]} 49. Ra3 {[%clk 0:00:07]}  g6 {[%clk 0:00:29]} 50. Kf1 {[%clk 0:00:06]}  Rb2 {[%clk 0:00:28]} 51. Kg1 {[%clk 0:00:06]}  Kg7 {[%clk 0:00:25]} 52. Ra6 {[%clk 0:00:04]}  Ne3 {[%clk 0:00:24]} 53. Ra7+ {[%clk 0:00:01]}  Kf6 {[%clk 0:00:24]} 54. Ra3 {[%clk 0:00:02]}  Nf5 {[%clk 0:00:20]} 55. Re3 {[%clk 0:00:01]}  Nxe3 {[%clk 0:00:19]} 56. g4 {[%clk 0:00:01]}  hxg4 {[%clk 0:00:17]} 57. h5 {[%clk 0:00:02]}  gxh5 {[%clk 0:00:16]} 58. Kh1 {[%clk 0:00:02]}  h4 {[%clk 0:00:16]} 59. Kg1 {[%clk 0:00:03]}  g3 {[%clk 0:00:15]} 60. Kh1 {[%clk 0:00:04]}  h3 {[%clk 0:00:16]} 61. Kg1 {[%clk 0:00:04]}  h2+ {[%clk 0:00:16]} 62. Kh1 {[%clk 0:00:05]}  Rb1# {[%clk 0:00:16]} 0-1


[Site "https://www.chess.com"]

[Event "Titled Tuesday Blitz August 08 Early 2023"]
[White "Nathan, Nitish"]
[Black "Janaszak, Dawid"]
[WhiteFideId "30927870"]
[BlackFideId "1119206"]
[WhiteElo "2418"]
[BlackElo "2549"]
[Result "0-1"]
[Round "10"]
[TimeControl "180+1"]
[Date "2023.08.08"]
[WhiteClock "0:00:44"]
[BlackClock "0:00:18"]
[Board "86"]

1. d4 {[%clk 0:03:00]}  Nf6 {[%clk 0:02:58]} 2. Bf4 {[%clk 0:03:00]}  c5 {[%clk 0:02:57]} 3. e3 {[%clk 0:02:57]}  Nd5 {[%clk 0:02:57]} 4. dxc5 {[%clk 0:02:52]}  Nxf4 {[%clk 0:02:56]} 5. exf4 {[%clk 0:02:52]}  g6 {[%clk 0:02:53]} 6. Qd4 {[%clk 0:02:48]}  f6 {[%clk 0:02:53]} 7. Nf3 {[%clk 0:02:47]}  Nc6 {[%clk 0:02:52]} 8. Qd2 {[%clk 0:02:46]}  Bg7 {[%clk 0:02:47]} 9. Bc4 {[%clk 0:02:43]}  Na5 {[%clk 0:02:44]} 10. Be2 {[%clk 0:02:35]}  O-O {[%clk 0:02:39]} 11. O-O {[%clk 0:02:34]}  b6 {[%clk 0:02:40]} 12. b4 {[%clk 0:02:33]}  Nc6 {[%clk 0:02:28]} 13. b5 {[%clk 0:02:31]}  Na5 {[%clk 0:02:28]} 14. Qd5+ {[%clk 0:02:31]}  e6 {[%clk 0:02:23]} 15. Qxa8 {[%clk 0:02:30]}  Qc7 {[%clk 0:02:16]} 16. cxb6 {[%clk 0:02:26]}  axb6 {[%clk 0:02:17]} 17. Qe4 {[%clk 0:02:25]}  f5 {[%clk 0:02:16]} 18. Qe3 {[%clk 0:02:15]}  Bxa1 {[%clk 0:02:16]} 19. c3 {[%clk 0:02:15]}  Bb7 {[%clk 0:02:12]} 20. Ne5 {[%clk 0:02:09]}  Rc8 {[%clk 0:02:00]} 21. Rd1 {[%clk 0:02:06]}  Bd5 {[%clk 0:01:42]} 22. Bf3 {[%clk 0:01:54]}  Nc4 {[%clk 0:01:40]} 23. Nxc4 {[%clk 0:01:48]}  Bxc4 {[%clk 0:01:41]} 24. Qd4 {[%clk 0:01:45]}  Bxa2 {[%clk 0:01:33]} 25. Qa4 {[%clk 0:01:28]}  Bxb1 {[%clk 0:01:18]} 26. Qxa1 {[%clk 0:01:28]}  Be4 {[%clk 0:01:12]} 27. Bxe4 {[%clk 0:01:27]}  fxe4 {[%clk 0:01:13]} 28. Qb1 {[%clk 0:01:26]}  d5 {[%clk 0:01:09]} 29. Qb4 {[%clk 0:01:25]}  Qc5 {[%clk 0:00:56]} 30. Qa4 {[%clk 0:01:13]}  Qxc3 {[%clk 0:00:54]} 31. Qa7 {[%clk 0:01:11]}  Qd3 {[%clk 0:00:46]} 32. Qa1 {[%clk 0:01:10]}  Qxb5 {[%clk 0:00:43]} 33. Qf6 {[%clk 0:01:09]}  Qd7 {[%clk 0:00:42]} 34. Rb1 {[%clk 0:01:04]}  Rf8 {[%clk 0:00:39]} 35. Qe5 {[%clk 0:01:02]}  Qc6 {[%clk 0:00:39]} 36. h4 {[%clk 0:01:00]}  d4 {[%clk 0:00:20]} 37. Qxd4 {[%clk 0:00:58]}  Qd5 {[%clk 0:00:16]} 38. Qxb6 {[%clk 0:00:56]}  Rxf4 {[%clk 0:00:16]} 39. Qb8+ {[%clk 0:00:56]}  Rf8 {[%clk 0:00:16]} 40. Qg3 {[%clk 0:00:56]}  Qd3 {[%clk 0:00:15]} 41. Qe5 {[%clk 0:00:53]}  Qxb1+ {[%clk 0:00:15]} 42. Kh2 {[%clk 0:00:53]}  Qb3 {[%clk 0:00:13]} 43. h5 {[%clk 0:00:52]}  Qd5 {[%clk 0:00:13]} 44. Qb2 {[%clk 0:00:50]}  Qxh5+ {[%clk 0:00:13]} 45. Kg1 {[%clk 0:00:50]}  Qf5 {[%clk 0:00:14]} 46. Qd4 {[%clk 0:00:50]}  e5 {[%clk 0:00:13]} 47. Qd5+ {[%clk 0:00:50]}  Rf7 {[%clk 0:00:14]} 48. Qd8+ {[%clk 0:00:49]}  Kg7 {[%clk 0:00:14]} 49. Qd2 {[%clk 0:00:50]}  Qf4 {[%clk 0:00:13]} 50. Qb2 {[%clk 0:00:50]}  h5 {[%clk 0:00:13]} 51. g3 {[%clk 0:00:50]}  Qf5 {[%clk 0:00:14]} 52. Qd2 {[%clk 0:00:48]}  g5 {[%clk 0:00:13]} 53. Qe3 {[%clk 0:00:48]}  Kg6 {[%clk 0:00:13]} 54. Qd2 {[%clk 0:00:48]}  Qf3 {[%clk 0:00:14]} 55. Qd6+ {[%clk 0:00:48]}  Rf6 {[%clk 0:00:14]} 56. Qd2 {[%clk 0:00:47]}  e3 {[%clk 0:00:15]} 57. Qc2+ {[%clk 0:00:47]}  e4 {[%clk 0:00:14]} 58. fxe3 {[%clk 0:00:46]}  Qf1+ {[%clk 0:00:15]} 59. Kh2 {[%clk 0:00:45]}  Rf2+ {[%clk 0:00:16]} 60. Qxf2 {[%clk 0:00:44]}  Qxf2+ {[%clk 0:00:16]} 61. Kh3 {[%clk 0:00:44]}  g4+ {[%clk 0:00:17]} 62. Kh4 {[%clk 0:00:44]}  Qh2# {[%clk 0:00:18]} 0-1


[Site "https://www.chess.com"]

[Event "Titled Tuesday Blitz August 08 Early 2023"]
[White "ArtemDyachuk"]
[Black "Buscar, Michael"]
[BlackFideId "2603616"]
[WhiteElo "2540"]
[BlackElo "2408"]
[Result "1-0"]
[Round "10"]
[TimeControl "180+1"]
[Date "2023.08.08"]
[WhiteClock "0:02:10"]
[BlackClock "0:01:04"]
[Board "87"]

1. e4 {[%clk 0:03:00]}  c5 {[%clk 0:02:59]} 2. Nf3 {[%clk 0:03:00]}  Nc6 {[%clk 0:02:59]} 3. Bb5 {[%clk 0:02:59]}  Nf6 {[%clk 0:02:58]} 4. Nc3 {[%clk 0:02:58]}  g6 {[%clk 0:02:58]} 5. e5 {[%clk 0:02:56]}  Ng4 {[%clk 0:02:58]} 6. Bxc6 {[%clk 0:02:52]}  bxc6 {[%clk 0:02:54]} 7. h3 {[%clk 0:02:53]}  Nh6 {[%clk 0:02:53]} 8. d3 {[%clk 0:02:53]}  Nf5 {[%clk 0:02:52]} 9. Bf4 {[%clk 0:02:51]}  Nd4 {[%clk 0:02:50]} 10. Ne4 {[%clk 0:02:49]}  Bg7 {[%clk 0:02:43]} 11. O-O {[%clk 0:02:47]}  Ne6 {[%clk 0:02:41]} 12. Bg3 {[%clk 0:02:42]}  O-O {[%clk 0:02:33]} 13. Qd2 {[%clk 0:02:42]}  Rb8 {[%clk 0:02:24]} 14. b3 {[%clk 0:02:39]}  Rb5 {[%clk 0:02:15]} 15. c4 {[%clk 0:02:29]}  Rb8 {[%clk 0:02:09]} 16. Nf6+ {[%clk 0:02:21]}  exf6 {[%clk 0:01:42]} 17. exf6 {[%clk 0:02:22]}  Bxf6 {[%clk 0:01:41]} 18. Bxb8 {[%clk 0:02:19]}  Bxa1 {[%clk 0:01:41]} 19. Rxa1 {[%clk 0:02:18]}  Qb6 {[%clk 0:01:35]} 20. Bd6 {[%clk 0:02:17]}  Re8 {[%clk 0:01:34]} 21. Re1 {[%clk 0:02:15]}  Qd8 {[%clk 0:01:26]} 22. Qh6 {[%clk 0:02:13]}  Nd4 {[%clk 0:01:15]} 23. Rxe8+ {[%clk 0:02:10]}  Qxe8 {[%clk 0:01:04]} 24. Ng5 {[%clk 0:02:10]} 1-0


[Site "https://www.chess.com"]

[Event "Titled Tuesday Blitz August 08 Early 2023"]
[White "Molina, Roberto Junio Brito"]
[Black "Glavina, Pablo"]
[WhiteFideId "2109450"]
[BlackFideId "100234"]
[WhiteElo "2817"]
[BlackElo "2517"]
[Result "1-0"]
[Round "10"]
[TimeControl "180+1"]
[Date "2023.08.08"]
[WhiteClock "0:01:28"]
[BlackClock "0:01:29"]
[Board "90"]

1. e4 {[%clk 0:03:00]}  c5 {[%clk 0:02:59]} 2. Nf3 {[%clk 0:03:00]}  d6 {[%clk 0:02:57]} 3. d4 {[%clk 0:03:00]}  cxd4 {[%clk 0:02:57]} 4. Nxd4 {[%clk 0:03:01]}  Nf6 {[%clk 0:02:58]} 5. Nc3 {[%clk 0:03:01]}  Nc6 {[%clk 0:02:58]} 6. Bg5 {[%clk 0:03:01]}  e6 {[%clk 0:02:58]} 7. Qd2 {[%clk 0:03:00]}  Be7 {[%clk 0:02:58]} 8. O-O-O {[%clk 0:03:00]}  O-O {[%clk 0:02:58]} 9. f3 {[%clk 0:02:57]}  a6 {[%clk 0:02:57]} 10. h4 {[%clk 0:02:56]}  Nxd4 {[%clk 0:02:53]} 11. Qxd4 {[%clk 0:02:55]}  b5 {[%clk 0:02:53]} 12. Bd3 {[%clk 0:02:54]}  Bb7 {[%clk 0:02:52]} 13. Kb1 {[%clk 0:02:55]}  Rc8 {[%clk 0:02:50]} 14. g4 {[%clk 0:02:54]}  Qa5 {[%clk 0:02:40]} 15. Bd2 {[%clk 0:02:46]}  b4 {[%clk 0:02:36]} 16. Ne2 {[%clk 0:02:45]}  d5 {[%clk 0:02:36]} 17. e5 {[%clk 0:02:45]}  Nd7 {[%clk 0:02:36]} 18. Nc1 {[%clk 0:02:34]}  Bc5 {[%clk 0:02:26]} 19. Nb3 {[%clk 0:02:28]}  Bxd4 {[%clk 0:02:20]} 20. Nxa5 {[%clk 0:02:29]}  Ba8 {[%clk 0:02:20]} 21. Bxb4 {[%clk 0:02:23]}  Rfd8 {[%clk 0:02:17]} 22. f4 {[%clk 0:02:23]}  Nc5 {[%clk 0:02:14]} 23. Bxh7+ {[%clk 0:02:08]}  Kxh7 {[%clk 0:02:12]} 24. Rxd4 {[%clk 0:02:09]}  Ne4 {[%clk 0:02:12]} 25. c3 {[%clk 0:01:56]}  Bc6 {[%clk 0:02:06]} 26. b3 {[%clk 0:01:51]}  Ba8 {[%clk 0:01:57]} 27. Kb2 {[%clk 0:01:50]}  Rc7 {[%clk 0:01:56]} 28. Re1 {[%clk 0:01:46]}  Rdc8 {[%clk 0:01:53]} 29. Re3 {[%clk 0:01:37]}  Nf2 {[%clk 0:01:47]} 30. f5 {[%clk 0:01:33]}  Rd7 {[%clk 0:01:37]} 31. a4 {[%clk 0:01:29]}  Ne4 {[%clk 0:01:29]} 32. Rexe4 {[%clk 0:01:28]} 1-0


[Site "https://www.chess.com"]

[Event "Titled Tuesday Blitz August 08 Early 2023"]
[White "Willy, Stephen"]
[Black "Srihari L R"]
[WhiteFideId "30981468"]
[BlackFideId "46617116"]
[WhiteElo "2503"]
[BlackElo "2740"]
[Result "0-1"]
[Round "10"]
[TimeControl "180+1"]
[Date "2023.08.08"]
[WhiteClock "0:00:00"]
[BlackClock "0:01:06"]
[Board "91"]

1. d4 {[%clk 0:02:53]}  d6 {[%clk 0:02:53]} 2. e4 {[%clk 0:02:53]}  Nf6 {[%clk 0:02:53]} 3. Nc3 {[%clk 0:02:54]}  e5 {[%clk 0:02:53]} 4. Nf3 {[%clk 0:02:53]}  exd4 {[%clk 0:02:53]} 5. Nxd4 {[%clk 0:02:51]}  Be7 {[%clk 0:02:54]} 6. f3 {[%clk 0:02:46]}  O-O {[%clk 0:02:51]} 7. Be3 {[%clk 0:02:44]}  d5 {[%clk 0:02:51]} 8. e5 {[%clk 0:02:41]}  Ne8 {[%clk 0:02:50]} 9. Nb3 {[%clk 0:02:14]}  c6 {[%clk 0:02:50]} 10. Bd3 {[%clk 0:02:09]}  f6 {[%clk 0:02:49]} 11. exf6 {[%clk 0:02:08]}  Bxf6 {[%clk 0:02:49]} 12. Qd2 {[%clk 0:02:04]}  Nd6 {[%clk 0:02:45]} 13. O-O-O {[%clk 0:02:03]}  Nd7 {[%clk 0:02:44]} 14. h4 {[%clk 0:01:54]}  Ne5 {[%clk 0:02:43]} 15. Be2 {[%clk 0:01:52]}  Ndc4 {[%clk 0:02:43]} 16. Bxc4 {[%clk 0:01:50]}  Nxc4 {[%clk 0:02:44]} 17. Qd3 {[%clk 0:01:46]}  Bf5 {[%clk 0:02:17]} 18. Qxf5 {[%clk 0:01:43]}  Bxc3 {[%clk 0:02:13]} 19. Qe6+ {[%clk 0:01:39]}  Kh8 {[%clk 0:02:13]} 20. Bd4 {[%clk 0:01:23]}  Bxd4 {[%clk 0:02:08]} 21. Rxd4 {[%clk 0:01:22]}  a5 {[%clk 0:02:06]} 22. Rhd1 {[%clk 0:01:14]}  a4 {[%clk 0:02:04]} 23. Nd2 {[%clk 0:01:06]}  Nd6 {[%clk 0:02:01]} 24. Ne4 {[%clk 0:00:59]}  Nf5 {[%clk 0:01:51]} 25. R4d3 {[%clk 0:00:39]}  Qxh4 {[%clk 0:01:39]} 26. Nc5 {[%clk 0:00:25]}  Qc4 {[%clk 0:01:38]} 27. Nd7 {[%clk 0:00:24]}  Qxa2 {[%clk 0:01:22]} 28. Nxf8 {[%clk 0:00:19]}  Rxf8 {[%clk 0:01:22]} 29. Ra3 {[%clk 0:00:18]}  Qc4 {[%clk 0:01:22]} 30. Re1 {[%clk 0:00:18]}  Nd4 {[%clk 0:01:16]} 31. Rc3 {[%clk 0:00:07]}  Qxc3 {[%clk 0:01:14]} 32. bxc3 {[%clk 0:00:07]}  Nxe6 {[%clk 0:01:14]} 33. Rxe6 {[%clk 0:00:08]}  h6 {[%clk 0:01:11]} 34. Re7 {[%clk 0:00:07]}  b5 {[%clk 0:01:11]} 35. Rc7 {[%clk 0:00:05]}  Rf6 {[%clk 0:01:12]} 36. Kd2 {[%clk 0:00:05]}  h5 {[%clk 0:01:11]} 37. Ke3 {[%clk 0:00:05]}  h4 {[%clk 0:01:11]} 38. f4 {[%clk 0:00:06]}  Kh7 {[%clk 0:01:11]} 39. Kf3 {[%clk 0:00:06]}  Rg6 {[%clk 0:01:06]} 40. Rc8 {[%clk 0:00:03]}  Rg3+ {[%clk 0:01:05]} 41. Kf2 {[%clk 0:00:00]}  Rxc3 {[%clk 0:01:06]} 0-1


[Site "https://www.chess.com"]

[Event "Titled Tuesday Blitz August 08 Early 2023"]
[White "Godzwon, Iwo"]
[Black "Khamdamova, Afruza"]
[WhiteFideId "21802483"]
[BlackFideId "14210444"]
[WhiteElo "2657"]
[BlackElo "2480"]
[Result "1-0"]
[Round "10"]
[TimeControl "180+1"]
[Date "2023.08.08"]
[WhiteClock "0:01:00"]
[BlackClock "0:00:16"]
[Board "93"]

1. e4 {[%clk 0:02:44]}  e5 {[%clk 0:03:00]} 2. Nf3 {[%clk 0:02:18]}  Nc6 {[%clk 0:02:59]} 3. Bc4 {[%clk 0:02:17]}  Nf6 {[%clk 0:02:59]} 4. d3 {[%clk 0:02:15]}  Bc5 {[%clk 0:02:58]} 5. O-O {[%clk 0:02:15]}  d6 {[%clk 0:02:57]} 6. c3 {[%clk 0:02:16]}  a6 {[%clk 0:02:58]} 7. Re1 {[%clk 0:02:16]}  Ba7 {[%clk 0:02:58]} 8. Nbd2 {[%clk 0:02:16]}  O-O {[%clk 0:02:57]} 9. Nf1 {[%clk 0:02:17]}  Be6 {[%clk 0:02:57]} 10. Bxe6 {[%clk 0:02:16]}  fxe6 {[%clk 0:02:57]} 11. Be3 {[%clk 0:02:16]}  Bxe3 {[%clk 0:02:55]} 12. Nxe3 {[%clk 0:02:16]}  Qd7 {[%clk 0:02:55]} 13. h3 {[%clk 0:02:08]}  Kh8 {[%clk 0:02:53]} 14. Nh2 {[%clk 0:02:07]}  Qf7 {[%clk 0:02:52]} 15. Qe2 {[%clk 0:02:04]}  Nh5 {[%clk 0:02:51]} 16. g3 {[%clk 0:02:00]}  Rae8 {[%clk 0:02:48]} 17. Rad1 {[%clk 0:01:59]}  Nf6 {[%clk 0:02:40]} 18. Neg4 {[%clk 0:01:58]}  Nxg4 {[%clk 0:02:37]} 19. Nxg4 {[%clk 0:01:58]}  Qh5 {[%clk 0:02:36]} 20. Kg2 {[%clk 0:01:56]}  Re7 {[%clk 0:02:33]} 21. Ne3 {[%clk 0:01:56]}  Qh6 {[%clk 0:02:30]} 22. d4 {[%clk 0:01:55]}  Ref7 {[%clk 0:02:29]} 23. Ng4 {[%clk 0:01:54]}  Qh5 {[%clk 0:02:24]} 24. dxe5 {[%clk 0:01:51]}  Nxe5 {[%clk 0:02:24]} 25. f4 {[%clk 0:01:51]}  Ng6 {[%clk 0:02:20]} 26. Rf1 {[%clk 0:01:48]}  Qa5 {[%clk 0:01:54]} 27. Qc4 {[%clk 0:01:42]}  Re7 {[%clk 0:01:30]} 28. a3 {[%clk 0:01:35]}  h5 {[%clk 0:01:24]} 29. Ne3 {[%clk 0:01:31]}  h4 {[%clk 0:01:24]} 30. f5 {[%clk 0:01:25]}  Ne5 {[%clk 0:01:18]} 31. Qe2 {[%clk 0:01:24]}  hxg3 {[%clk 0:01:18]} 32. Kxg3 {[%clk 0:01:21]}  Kg8 {[%clk 0:01:15]} 33. Rf4 {[%clk 0:01:17]}  exf5 {[%clk 0:01:07]} 34. Nxf5 {[%clk 0:01:16]}  Re6 {[%clk 0:01:07]} 35. Rdf1 {[%clk 0:01:15]}  Rg6+ {[%clk 0:01:06]} 36. Kh2 {[%clk 0:01:14]}  Re8 {[%clk 0:00:48]} 37. Qh5 {[%clk 0:01:09]}  Rge6 {[%clk 0:00:21]} 38. Rh4 {[%clk 0:01:02]}  Ng6 {[%clk 0:00:16]} 39. Qh7+ {[%clk 0:01:00]} 1-0


[Site "https://www.chess.com"]

[Event "Titled Tuesday Blitz August 08 Early 2023"]
[White "Nguyen Hong Nhung"]
[Black "SmirnovAlexandrA"]
[WhiteFideId "12412201"]
[WhiteElo "2477"]
[BlackElo "2595"]
[Result "1/2-1/2"]
[Round "10"]
[TimeControl "180+1"]
[Date "2023.08.08"]
[WhiteClock "0:00:52"]
[BlackClock "0:01:25"]
[Board "95"]

1. e4 {[%clk 0:03:00]}  d5 {[%clk 0:02:47]} 2. exd5 {[%clk 0:03:01]}  Qxd5 {[%clk 0:02:48]} 3. Nc3 {[%clk 0:03:01]}  Qd6 {[%clk 0:02:48]} 4. d4 {[%clk 0:03:01]}  Nf6 {[%clk 0:02:49]} 5. Nf3 {[%clk 0:03:01]}  a6 {[%clk 0:02:49]} 6. g3 {[%clk 0:03:00]}  Bg4 {[%clk 0:02:30]} 7. Bg2 {[%clk 0:02:58]}  Nc6 {[%clk 0:02:30]} 8. O-O {[%clk 0:02:22]}  O-O-O {[%clk 0:02:30]} 9. Be3 {[%clk 0:02:14]}  e5 {[%clk 0:02:26]} 10. dxe5 {[%clk 0:02:07]}  Nxe5 {[%clk 0:02:26]} 11. Qxd6 {[%clk 0:01:59]}  Nxf3+ {[%clk 0:02:15]} 12. Bxf3 {[%clk 0:02:00]}  Bxd6 {[%clk 0:02:16]} 13. Bg2 {[%clk 0:01:56]}  h6 {[%clk 0:02:11]} 14. h3 {[%clk 0:01:56]}  Bf5 {[%clk 0:02:08]} 15. Rac1 {[%clk 0:01:53]}  Rhe8 {[%clk 0:02:05]} 16. Rfe1 {[%clk 0:01:52]}  Ne4 {[%clk 0:02:03]} 17. Nxe4 {[%clk 0:01:50]}  Bxe4 {[%clk 0:02:04]} 18. Bxe4 {[%clk 0:01:51]}  Rxe4 {[%clk 0:02:05]} 19. Kf1 {[%clk 0:01:37]}  Rde8 {[%clk 0:02:02]} 20. Bd4 {[%clk 0:01:34]}  Rxe1+ {[%clk 0:01:44]} 21. Rxe1 {[%clk 0:01:35]}  Rxe1+ {[%clk 0:01:44]} 22. Kxe1 {[%clk 0:01:36]}  g6 {[%clk 0:01:45]} 23. g4 {[%clk 0:01:34]}  Kd7 {[%clk 0:01:40]} 24. Ke2 {[%clk 0:01:31]}  Ke6 {[%clk 0:01:39]} 25. Be3 {[%clk 0:01:12]}  h5 {[%clk 0:01:36]} 26. gxh5 {[%clk 0:01:08]}  gxh5 {[%clk 0:01:37]} 27. Kf3 {[%clk 0:01:08]}  Kf5 {[%clk 0:01:37]} 28. b3 {[%clk 0:01:05]}  b5 {[%clk 0:01:35]} 29. Bd4 {[%clk 0:00:52]}  c6 {[%clk 0:01:25]} 1/2-1/2


[Site "https://www.chess.com"]